fUSD/lending_fUSD_20241220
["ID","MTS","AMOUNT","RATE_DAILY","PERIOD"]
[346062820,1734685841408,-553.41534864,0.00021917,4]
[346062821,1734685841417,-500.0,0.00021917,4]
[346062822,1734685841427,-500.0,0.00021917,4]
[346062823,1734685841438,-398.394599,0.00021917,4]
[346062824,1734685841447,-501.41735396,0.00021917,4]
[346062825,1734685841461,-500.0,0.00021917,4]
[346062826,1734685841471,-500.0,0.00021917,4]
[346062827,1734685841480,-500.0,0.00021917,4]
[346062828,1734685841489,-505.09053256,0.00021917,4]
[346062829,1734685841498,-500.0,0.00021917,4]
[346062830,1734685841508,-318.48693113,0.00021917,4]
[346062831,1734685841517,-500.22376165,0.00021917,4]
[346062832,1734685841526,-500.0,0.00021917,4]
[346062833,1734685841536,-500.0,0.00021917,4]
[346062834,1734685841546,-500.0,0.00021917,4]
[346062835,1734685841555,-523.63638616,0.00021917,4]
[346062836,1734685841564,-500.0,0.00021917,4]
[346062837,1734685841574,-511.516818,0.00021917,4]
[346062838,1734685841583,-500.0,0.00021917,4]
[346062839,1734685841593,-501.61261829,0.00021917,4]
[346062840,1734685841602,-509.79855978,0.00021917,4]
[346062841,1734685841611,-500.0,0.00021917,4]
[346062842,1734685841621,-500.0,0.00021917,4]
[346062843,1734685841631,-500.0,0.00021917,4]
[346062844,1734685841640,-500.0,0.00021917,4]
[346062845,1734685841650,-504.59692641,0.00021917,4]
[346062846,1734685841660,-508.65856268,0.00021917,4]
[346062847,1734685841669,-501.67031695,0.00021917,4]
[346062848,1734685841679,-500.0,0.00021917,4]
[346062849,1734685841688,-512.38709667,0.00021917,4]
[346062850,1734685841698,-500.0,0.00021917,4]
[346062851,1734685841712,-500.0,0.00021917,4]
[346062852,1734685841721,-161.21299701,0.00021917,4]
[346062853,1734685841743,-338.78700299,0.00021917,4]
[346062854,1734685841753,-500.0,0.00021917,4]
[346062855,1734685841763,-507.38068417,0.00021917,4]
[346062856,1734685841772,-408.7849797,0.00021917,4]
[346062857,1734685841784,-91.2150203,0.00021917,4]
[346062858,1734685841793,-389.25463614,0.00021917,4]
[346062859,1734685841802,-1.83390809,0.00021917,4]
[346062860,1734685841815,-498.16609191,0.00021917,4]
[346062861,1734685841824,-514.73285588,0.00021917,4]
[346062862,1734685841834,-500.0,0.00021917,4]
[346062863,1734685841844,-500.0,0.00021917,4]
[346062864,1734685841853,-503.18068585,0.00021917,4]
[346062865,1734685841862,-500.0,0.00021917,4]
[346062866,1734685841871,-507.84820911,0.00021917,4]
[346062867,1734685841880,-32.9960933,0.00021917,4]
[346062868,1734685841894,-467.0039067,0.00021917,4]
[346062869,1734685841903,-504.63436587,0.00021917,4]
[346062870,1734685841912,-46.78707655,0.00021917,4]
[346062871,1734685841924,-453.21292345,0.00021917,4]
[346062872,1734685841934,-500.0,0.00021917,4]
[346062873,1734685841945,-500.0,0.00021917,4]
[346062874,1734685841961,-500.0,0.00021917,4]
[346062875,1734685841970,-250.43491026,0.00021917,4]
[346062876,1734685841983,-249.56508974,0.00021917,4]
[346062877,1734685841994,-500.0,0.00021917,4]
[346062878,1734685842005,-500.0,0.00021917,4]
[346062879,1734685842016,-500.0,0.00021917,4]
[346062880,1734685842027,-500.0,0.00021917,4]
[346062881,1734685842037,-500.0,0.00021917,4]
[346062882,1734685842048,-329.85755761,0.00021917,4]
[346062883,1734685842059,-501.63624186,0.00021917,4]
[346062884,1734685842069,-500.0,0.00021917,4]
[346062885,1734685842079,-500.0,0.00021917,4]
[346062886,1734685842090,-500.0,0.00021917,4]
[346062887,1734685842192,-508.38714866,0.00021917,4]
[346062888,1734685842203,-500.0,0.00021917,4]
[346062889,1734685842222,-513.31451306,0.00021917,4]
[346062890,1734685842234,-500.0,0.00021917,4]
[346062891,1734685842243,-502.16501191,0.00021917,4]
[346062892,1734685842252,-500.0,0.00021917,4]
[346062893,1734685842262,-500.0,0.00021917,4]
[346062894,1734685842271,-500.0,0.00021917,4]
[346062895,1734685842280,-500.0,0.00021917,4]
[346062896,1734685842291,-504.02768907,0.00021917,4]
[346062897,1734685842301,-538.92292134,0.00021917,4]
[346062898,1734685842310,-500.0,0.00021917,4]
[346062899,1734685842320,-151.0,0.00021917,2]
[346062900,1734685842330,-500.0,0.00021917,4]
[346062901,1734685842340,-500.0,0.00021917,4]
[346062902,1734685842350,-214.5551565,0.00021917,4]
[346062903,1734685842360,-500.0,0.00021917,4]
[346062904,1734685842369,-500.0,0.00021917,4]
[346062905,1734685842379,-151.892843,0.00021917,2]
[346062906,1734685842389,-500.0,0.00021917,4]
[346062907,1734685842398,-500.0,0.00021917,4]
[346062908,1734685842408,-500.0,0.00021917,4]
[346062909,1734685842418,-500.0,0.00021917,4]
[346062910,1734685842427,-500.0,0.00021917,4]
[346062911,1734685842437,-500.0,0.00021917,4]
[346062912,1734685842447,-500.0,0.00021917,4]
[346062913,1734685842463,-198.4101428,0.00021917,4]
[346062914,1734685842472,-500.0,0.00021917,4]
[346062915,1734685842483,-500.0,0.00021917,4]
[346062916,1734685842493,-500.0,0.00021917,4]
[346062917,1734685842503,-607.36959087,0.00021917,4]
[346062918,1734685842512,-500.0,0.00021917,4]
[346062919,1734685842523,-500.0,0.00021917,4]
[346062920,1734685842532,-500.0,0.00021917,4]
[346062921,1734685842541,-274.0,0.00021917,4]
[346062922,1734685842551,-500.0,0.00021917,4]
[346062923,1734685842560,-518.87801787,0.00021917,4]
[346062924,1734685842570,-500.0,0.00021917,4]
[346062925,1734685842580,-503.19797421,0.00021917,4]
[346062926,1734685842590,-503.66139264,0.00021917,4]
[346062927,1734685842599,-151.0,0.00021917,2]
[346062928,1734685842609,-500.0,0.00021917,4]
[346062929,1734685842619,-151.0,0.00021917,2]
[346062930,1734685842629,-500.0,0.00021917,4]
[346062931,1734685842639,-501.04161427,0.00021917,4]
[346062932,1734685842649,-502.91713867,0.00021917,4]
[346062933,1734685842658,-500.0,0.00021917,4]
[346062934,1734685842668,-500.0,0.00021917,4]
[346062935,1734685842678,-500.0,0.00021917,4]
[346062936,1734685842687,-500.0,0.00021917,4]
[346062937,1734685842697,-500.0,0.00021917,4]
[346062938,1734685842712,-500.0,0.00021917,4]
[346062939,1734685842722,-500.0,0.00021917,4]
[346062940,1734685842732,-500.0,0.00021917,4]
[346062941,1734685842742,-500.0,0.00021917,4]
[346062942,1734685842751,-500.0,0.00021917,4]
[346062943,1734685842760,-500.0,0.00021917,4]
[346062944,1734685842771,-500.0,0.00021917,4]
[346062945,1734685842780,-542.84799827,0.00021917,4]
[346062946,1734685842789,-500.0,0.00021917,4]
[346062947,1734685842798,-617.38,0.00021917,4]
[346062948,1734685842808,-500.0,0.00021917,4]
[346062949,1734685842817,-500.0,0.00021917,4]
[346062950,1734685842827,-500.0,0.00021917,4]
[346062951,1734685842836,-500.0,0.00021917,4]
[346062952,1734685842846,-506.64612258,0.00021917,4]
[346062953,1734685842855,-500.0,0.00021917,4]
[346062954,1734685842864,-500.0,0.00021917,4]
[346062955,1734685842873,-574.35044722,0.00021917,4]
[346062956,1734685842883,-500.0,0.00021917,4]
[346062957,1734685842892,-500.0,0.00021917,4]
[346062958,1734685842902,-527.03995511,0.00021917,4]
[346062959,1734685842911,-166.82610411,0.00021917,4]
[346062960,1734685842921,-500.0,0.00021917,4]
[346062961,1734685842930,-501.20943106,0.00021917,4]
[346062962,1734685842940,-500.0,0.00021917,4]
[346062963,1734685842949,-500.0,0.00021917,4]
[346062964,1734685842961,-503.67881199,0.00021917,4]
[346062966,1734685842971,-500.0,0.00021917,4]
[346062967,1734685842980,-500.0,0.00021917,4]
[346062969,1734685842989,-500.0,0.00021917,4]
[346062970,1734685842998,-504.81831736,0.00021917,4]
[346062972,1734685843007,-310.6426284,0.00021917,4]
[346062976,1734685843038,-189.3573716,0.00021917,4]
[346062978,1734685843048,-500.0,0.00021917,4]
[346062981,1734685843057,-500.0,0.00021917,4]
[346062984,1734685843066,-501.95970782,0.00021917,4]
[346062988,1734685843076,-457.80507467,0.00021917,4]
[346062992,1734685843085,-500.0,0.00021917,4]
[346062996,1734685843094,-500.0,0.00021917,4]
[346062999,1734685843103,-502.50318395,0.00021917,4]
[346063002,1734685843112,-500.0,0.00021917,4]
[346063005,1734685843122,-500.0,0.00021917,4]
[346063008,1734685843132,-500.0,0.00021917,4]
[346063011,1734685843141,-500.0,0.00021917,4]
[346063014,1734685843151,-500.0,0.00021917,4]
[346063017,1734685843160,-500.0,0.00021917,4]
[346063018,1734685843170,-500.0,0.00021917,4]
[346063022,1734685843182,-179.22952997,0.00021917,4]
[346063025,1734685843191,-500.0,0.00021917,4]
[346063028,1734685843202,-500.0,0.00021917,4]
[346063031,1734685843219,-500.0,0.00021917,4]
[346063034,1734685843231,-514.37425291,0.00021917,4]
[346063036,1734685843242,-500.0,0.00021917,4]
[346063037,1734685843252,-500.0,0.00021917,4]
[346063039,1734685843263,-500.0,0.00021917,4]
[346063041,1734685843273,-500.0,0.00021917,4]
[346063043,1734685843284,-500.0,0.00021917,4]
[346063046,1734685843295,-206.34803477,0.00021917,4]
[346063047,1734685843305,-228.813531,0.00021917,2]
[346063048,1734685843315,-500.0,0.00021917,4]
[346063049,1734685843326,-613.25,0.00021917,4]
[346063051,1734685843338,-228.813531,0.00021917,2]
[346063053,1734685843348,-507.3859735,0.00021917,4]
[346063055,1734685843358,-500.0,0.00021917,4]
[346063057,1734685843368,-261.56281064,0.00021917,4]
[346063059,1734685843379,-506.94900617,0.00021917,4]
[346063061,1734685843389,-500.0,0.00021917,4]
[346063063,1734685843399,-500.0,0.00021917,4]
[346063064,1734685843409,-200.0,0.00021917,4]
[346063065,1734685843418,-246.42923449,0.00021917,4]
[346063066,1734685843428,-500.0,0.00021917,4]
[346063067,1734685843439,-500.0,0.00021917,4]
[346063068,1734685843449,-500.0,0.00021917,4]
[346063069,1734685843469,-500.0,0.00021917,4]
[346063070,1734685843481,-500.0,0.00021917,4]
[346063071,1734685843492,-500.0,0.00021917,4]
[346063072,1734685843503,-228.813531,0.00021917,2]
[346063073,1734685843514,-469.36754343,0.00021917,4]
[346063074,1734685843525,-500.0,0.00021917,4]
[346063075,1734685843536,-228.813531,0.00021917,2]
[346063076,1734685843547,-500.0,0.00021917,4]
[346063077,1734685843557,-500.0,0.00021917,4]
[346063078,1734685843569,-552.61206236,0.00021917,4]
[346063079,1734685843579,-500.0,0.00021917,4]
[346063080,1734685843590,-500.0,0.00021917,4]
[346063081,1734685843600,-500.0,0.00021917,4]
[346063082,1734685843611,-500.0,0.00021917,4]
[346063083,1734685843620,-500.0,0.00021917,4]
[346063084,1734685843630,-500.0,0.00021917,4]
[346063085,1734685843735,-500.0,0.00021917,4]
[346063086,1734685843746,-500.0,0.00021917,4]
[346063087,1734685843755,-500.0,0.00021917,4]
[346063088,1734685843766,-500.0,0.00021917,4]
[346063089,1734685843775,-500.0,0.00021917,4]
[346063090,1734685843785,-500.0,0.00021917,4]
[346063091,1734685843796,-217.68105594,0.00021917,4]
[346063092,1734685843806,-500.0,0.00021917,4]
[346063093,1734685843816,-500.0,0.00021917,4]
[346063094,1734685843826,-493.93704965,0.00021917,4]
[346063095,1734685843836,-501.626538,0.00021917,2]
[346063096,1734685843847,-300.09327014,0.00021917,4]
[346063097,1734685843856,-508.7985213,0.00021917,4]
[346063098,1734685843866,-501.626538,0.00021917,2]
[346063099,1734685843876,-500.0,0.00021917,4]
[346063100,1734685843886,-508.72085437,0.00021917,4]
[346063101,1734685843897,-500.0,0.00021917,4]
[346063102,1734685843907,-500.0,0.00021917,4]
[346063103,1734685843918,-500.0,0.00021917,4]
[346063104,1734685843929,-500.0,0.00021917,4]
[346063105,1734685843939,-500.0,0.00021917,4]
[346063106,1734685843949,-500.0,0.00021917,4]
[346063107,1734685843966,-500.0,0.00021917,4]
[346063108,1734685843976,-500.0,0.00021917,4]
[346063109,1734685843986,-500.0,0.00021917,4]
[346063110,1734685843996,-500.0,0.00021917,4]
[346063111,1734685844006,-500.0,0.00021917,4]
[346063112,1734685844016,-500.0,0.00021917,4]
[346063113,1734685844025,-500.0,0.00021917,4]
[346063114,1734685844035,-500.0,0.00021917,4]
[346063115,1734685844045,-500.0,0.00021917,4]
[346063116,1734685844055,-501.626538,0.00021917,2]
[346063117,1734685844064,-500.0,0.00021917,4]
[346063118,1734685844074,-500.0,0.00021917,4]
[346063119,1734685844084,-500.0,0.00021917,4]
[346063120,1734685844094,-325.49796973,0.00021917,4]
[346063121,1734685844104,-500.0,0.00021917,4]
[346063122,1734685844113,-501.626538,0.00021917,2]
[346063123,1734685844123,-500.0,0.00021917,4]
[346063124,1734685844133,-291.96340076,0.00021917,4]
[346063125,1734685844142,-500.0,0.00021917,4]
[346063126,1734685844152,-500.0,0.00021917,4]
[346063127,1734685844161,-500.0,0.00021917,4]
[346063128,1734685844171,-258.51149228,0.00021917,4]
[346063129,1734685844180,-504.58592206,0.00021917,4]
[346063130,1734685844189,-500.0,0.00021917,4]
[346063131,1734685844198,-500.0,0.00021917,4]
[346063132,1734685844211,-500.0,0.00021917,4]
[346063133,1734685844221,-500.0,0.00021917,4]
[346063134,1734685844231,-500.0,0.00021917,4]
[346063135,1734685844242,-235.49685592,0.00021917,4]
[346063136,1734685844252,-500.0,0.00021917,4]
[346063137,1734685844263,-512.83620682,0.00021917,4]
[346063138,1734685844273,-500.0,0.00021917,4]
[346063139,1734685844283,-502.97525822,0.00021917,4]
[346063140,1734685844297,-294.55228616,0.00021917,4]
[346063141,1734685844307,-504.78566573,0.00021917,4]
[346063142,1734685844318,-504.28691623,0.00021917,4]
[346063143,1734685844328,-500.0,0.00021917,4]
[346063144,1734685844339,-502.39415581,0.00021917,4]
[346063145,1734685844349,-500.0,0.00021917,4]
[346063146,1734685844360,-155.159903,0.00021917,2]
[346063147,1734685844371,-503.02028444,0.00021917,4]
[346063148,1734685844383,-501.31368388,0.00021917,4]
[346063149,1734685844393,-151.0,0.00021917,2]
[346063150,1734685844404,-500.0,0.00021917,4]
[346063151,1734685844414,-512.074852,0.00021917,4]
[346063152,1734685844425,-500.0,0.00021917,4]
[346063153,1734685844435,-150.95149099,0.00021917,4]
[346063154,1734685844445,-171.113337,0.00021917,2]
[346063156,1734685844463,-500.0,0.00021917,4]
[346063158,1734685844474,-496.86508516,0.00021917,4]
[346063159,1734685844485,-500.0,0.00021917,4]
[346063160,1734685844495,-507.64434114,0.00021917,4]
[346063161,1734685844504,-500.0,0.00021917,4]
[346063162,1734685844515,-504.69548446,0.00021917,4]
[346063163,1734685844525,-622.99664836,0.00021917,4]
[346063164,1734685844535,-500.0,0.00021917,4]
[346063165,1734685844546,-500.0,0.00021917,4]
[346063166,1734685844556,-500.0,0.00021917,4]
[346063167,1734685844567,-500.0,0.00021917,4]
[346063170,1734685844579,-500.0,0.00021917,4]
[346063172,1734685844591,-500.0,0.00021917,4]
[346063174,1734685844602,-500.0,0.00021917,4]
[346063176,1734685844612,-500.0,0.00021917,4]
[346063178,1734685844623,-511.46856446,0.00021917,4]
[346063180,1734685844633,-500.0,0.00021917,4]
[346063182,1734685844643,-514.76537801,0.00021917,4]
[346063184,1734685844654,-500.0,0.00021917,4]
[346063186,1734685844664,-500.0,0.00021917,4]
[346063188,1734685844674,-500.0,0.00021917,4]
[346063189,1734685844684,-616.20892567,0.00021917,4]
[346063191,1734685844694,-271.62445049,0.00021917,4]
[346063193,1734685844744,-228.37554951,0.00021917,4]
[346063194,1734685844754,-500.0,0.00021917,4]
[346063195,1734685844764,-500.0,0.00021917,4]
[346063196,1734685844775,-5000.0,0.00021917,4]
[346063197,1734685844785,-500.0,0.00021917,4]
[346063198,1734685844795,-5000.0,0.00021917,4]
[346063199,1734685844805,-500.0,0.00021917,4]
[346063200,1734685844815,-4174.99650991,0.00021917,4]
[346063201,1734685844825,-500.0,0.00021917,4]
[346063202,1734685844834,-500.0,0.00021917,4]
[346063203,1734685844844,-500.0,0.00021917,4]
[346063204,1734685844853,-500.0,0.00021917,4]
[346063205,1734685844863,-500.0,0.00021917,4]
[346063206,1734685844872,-503.01705125,0.00021917,4]
[346063207,1734685844882,-500.0,0.00021917,4]
[346063208,1734685844891,-500.0,0.00021917,4]
[346063209,1734685844900,-500.0,0.00021917,4]
[346063210,1734685844909,-500.0,0.00021917,4]
[346063211,1734685844919,-500.0,0.00021917,4]
[346063212,1734685844929,-500.0,0.00021917,4]
[346063213,1734685844939,-500.0,0.00021917,4]
[346063214,1734685844949,-500.0,0.00021917,4]
[346063215,1734685844963,-487.98257462,0.00021917,4]
[346063216,1734685844972,-500.0,0.00021917,4]
[346063217,1734685844982,-500.0,0.00021917,4]
[346063218,1734685844991,-500.0,0.00021917,4]
[346063219,1734685845001,-323.29662272,0.00021917,4]
[346063220,1734685845011,-500.0,0.00021917,4]
[346063221,1734685845020,-500.0,0.00021917,4]
[346063222,1734685845029,-500.0,0.00021917,4]
[346063223,1734685845039,-500.0,0.00021917,4]
[346063224,1734685845049,-500.0,0.00021917,4]
[346063225,1734685845059,-500.0,0.00021917,4]
[346063226,1734685845069,-500.0,0.00021917,4]
[346063227,1734685845078,-500.0,0.00021917,4]
[346063228,1734685845179,-500.0,0.00021917,4]
[346063229,1734685845191,-500.0,0.00021917,4]
[346063230,1734685845201,-151.0,0.00021917,2]
[346063231,1734685845216,-499.73450354,0.00021917,4]
[346063232,1734685845227,-500.0,0.00021917,4]
[346063233,1734685845237,-500.0,0.00021917,4]
[346063234,1734685845247,-151.0,0.00021917,2]
[346063235,1734685845256,-222.40008261,0.00021917,4]
[346063236,1734685845266,-500.0,0.00021917,4]
[346063237,1734685845277,-500.0,0.00021917,4]
[346063238,1734685845287,-502.63273086,0.00021917,4]
[346063239,1734685845297,-500.0,0.00021917,4]
[346063240,1734685845307,-500.0,0.00021917,4]
[346063241,1734685845317,-500.0,0.00021917,4]
[346063242,1734685845327,-500.0,0.00021917,4]
[346063243,1734685845337,-500.0,0.00021917,4]
[346063244,1734685845346,-500.0,0.00021917,4]
[346063245,1734685845356,-500.0,0.00021917,4]
[346063246,1734685845366,-500.0,0.00021917,4]
[346063247,1734685845376,-500.0,0.00021917,4]
[346063248,1734685845386,-500.0,0.00021917,4]
[346063249,1734685845397,-548.72507761,0.00021917,4]
[346063250,1734685845407,-500.79878941,0.00021917,4]
[346063251,1734685845416,-500.0,0.00021917,4]
[346063252,1734685845426,-500.0,0.00021917,4]
[346063253,1734685845436,-500.0,0.00021917,4]
[346063254,1734685845446,-500.0,0.00021917,4]
[346063255,1734685845456,-500.0,0.00021917,4]
[346063256,1734685845472,-500.0,0.00021917,4]
[346063257,1734685845483,-500.0,0.00021917,4]
[346063258,1734685845493,-507.43292273,0.00021917,4]
[346063259,1734685845503,-500.0,0.00021917,4]
[346063260,1734685845513,-500.0,0.00021917,4]
[346063261,1734685845523,-262.51646893,0.00021917,4]
[346063262,1734685845532,-500.0,0.00021917,4]
[346063263,1734685845542,-500.0,0.00021917,4]
[346063264,1734685845552,-500.0,0.00021917,4]
[346063265,1734685845562,-500.0,0.00021917,4]
[346063266,1734685845572,-500.0,0.00021917,4]
[346063267,1734685845583,-500.0,0.00021917,4]
[346063268,1734685845593,-500.0,0.00021917,4]
[346063269,1734685845602,-500.0,0.00021917,4]
[346063270,1734685845612,-516.63201908,0.00021917,4]
[346063271,1734685845623,-500.0,0.00021917,4]
[346063272,1734685845632,-500.0,0.00021917,4]
[346063273,1734685845642,-500.0,0.00021917,4]
[346063274,1734685845652,-500.0,0.00021917,4]
[346063275,1734685845662,-502.81960439,0.00021917,4]
[346063276,1734685845674,-500.0,0.00021917,4]
[346063277,1734685845684,-518.86655506,0.00021917,4]
[346063278,1734685845694,-500.0,0.00021917,4]
[346063279,1734685845703,-500.0,0.00021917,4]
[346063280,1734685845719,-500.0,0.00021917,4]
[346063281,1734685845729,-500.0,0.00021917,4]
[346063282,1734685845740,-500.0,0.00021917,4]
[346063283,1734685845750,-189.91015195,0.00021917,4]
[346063284,1734685845761,-500.0,0.00021917,4]
[346063285,1734685845771,-500.0,0.00021917,4]
[346063286,1734685845782,-501.33627925,0.00021917,4]
[346063287,1734685845800,-500.0,0.00021917,4]
[346063288,1734685845816,-500.0,0.00021917,4]
[346063289,1734685845836,-500.0,0.00021917,4]
[346063290,1734685845856,-510.04281323,0.00021917,4]
[346063291,1734685845872,-500.0,0.00021917,4]
[346063292,1734685845890,-500.0,0.00021917,4]
[346063293,1734685845909,-500.0,0.00021917,4]
[346063296,1734685845928,-500.0,0.00021917,4]
[346063300,1734685845947,-500.0,0.00021917,4]
[346063303,1734685845969,-500.0,0.00021917,4]
[346063308,1734685845988,-500.0,0.00021917,4]
[346063310,1734685846003,-500.0,0.00021917,4]
[346063311,1734685846023,-500.0,0.00021917,4]
[346063312,1734685846037,-514.55349866,0.00021917,4]
[346063313,1734685846057,-504.90871514,0.00021917,4]
[346063316,1734685846071,-500.0,0.00021917,4]
[346063318,1734685846088,-191.16902543,0.00021917,4]
[346063320,1734685846105,-500.0,0.00021917,4]
[346063321,1734685846120,-500.0,0.00021917,4]
[346063322,1734685846137,-500.0,0.00021917,4]
[346063324,1734685846152,-500.0,0.00021917,4]
[346063326,1734685846168,-500.0,0.00021917,4]
[346063329,1734685846185,-500.0,0.00021917,4]
[346063330,1734685846200,-500.0,0.00021917,4]
[346063331,1734685846218,-500.0,0.00021917,4]
[346063334,1734685846235,-500.0,0.00021917,4]
[346063336,1734685846251,-180.39082881,0.00021917,4]
[346063338,1734685846267,-476.59111828,0.00021917,4]
[346063339,1734685846285,-500.0,0.00021917,4]
[346063340,1734685846303,-500.0,0.00021917,4]
[346063341,1734685846320,-500.0,0.00021917,4]
[346063342,1734685846336,-500.0,0.00021917,4]
[346063343,1734685846353,-500.0,0.00021917,4]
[346063344,1734685846369,-500.0,0.00021917,4]
[346063345,1734685846385,-500.0,0.00021917,4]
[346063346,1734685846399,-500.0,0.00021917,4]
[346063347,1734685846416,-500.0,0.00021917,4]
[346063348,1734685846433,-500.0,0.00021917,4]
[346063349,1734685846449,-500.0,0.00021917,4]
[346063350,1734685846466,-500.0,0.00021917,4]
[346063351,1734685846482,-512.15774059,0.00021917,4]
[346063352,1734685846499,-500.0,0.00021917,4]
[346063353,1734685846515,-500.0,0.00021917,4]
[346063354,1734685846533,-500.0,0.00021917,4]
[346063355,1734685846549,-503.37064635,0.00021917,4]
[346063356,1734685846559,-500.0,0.00021917,4]
[346063357,1734685846570,-500.0,0.00021917,4]
[346063358,1734685846580,-500.0,0.00021917,4]
[346063359,1734685846591,-500.0,0.00021917,4]
[346063360,1734685846601,-505.18101878,0.00021917,4]
[346063361,1734685846611,-500.0,0.00021917,4]
[346063362,1734685846622,-500.0,0.00021917,4]
[346063363,1734685846633,-520.85603662,0.00021917,4]
[346063364,1734685846643,-500.0,0.00021917,4]
[346063365,1734685846654,-500.0,0.00021917,4]
[346063366,1734685846664,-555.65577896,0.00021917,4]
[346063367,1734685846675,-438.68,0.00021917,4]
[346063368,1734685846686,-500.0,0.00021917,4]
[346063369,1734685846696,-500.0,0.00021917,4]
[346063370,1734685846705,-391.1057171,0.00021917,4]
[346063371,1734685846940,-504.03478667,0.00021917,4]
[346063372,1734685846968,-500.0,0.00021917,4]
[346063373,1734685846981,-500.0,0.00021917,4]
[346063374,1734685846991,-500.0,0.00021917,4]
[346063375,1734685847001,-381.27222202,0.00021917,4]
[346063376,1734685847011,-502.63589504,0.00021917,4]
[346063377,1734685847021,-500.0,0.00021917,4]
[346063378,1734685847031,-526.30020372,0.00021917,4]
[346063379,1734685847041,-500.0,0.00021917,4]
[346063380,1734685847051,-500.0,0.00021917,4]
[346063381,1734685847061,-500.0,0.00021917,4]
[346063382,1734685847071,-500.0,0.00021917,4]
[346063383,1734685847080,-335.02843453,0.00021917,4]
[346063384,1734685847090,-500.0,0.00021917,4]
[346063385,1734685847099,-500.0,0.00021917,4]
[346063386,1734685847109,-500.0,0.00021917,4]
[346063387,1734685847119,-500.0,0.00021917,4]
[346063388,1734685847128,-500.0,0.00021917,4]
[346063389,1734685847138,-569.27,0.00021917,4]
[346063390,1734685847148,-500.0,0.00021917,4]
[346063391,1734685847158,-437.74656719,0.00021917,4]
[346063392,1734685847170,-500.0,0.00021917,4]
[346063393,1734685847185,-500.0,0.00021917,4]
[346063394,1734685847200,-508.46715397,0.00021917,4]
[346063395,1734685847216,-506.7026038,0.00021917,4]
[346063396,1734685847226,-500.0,0.00021917,4]
[346063397,1734685847237,-500.0,0.00021917,4]
[346063398,1734685847246,-500.0,0.00021917,4]
[346063399,1734685847256,-14.31932231,0.00021917,4]
[346063400,1734685847312,-485.68067769,0.00021917,4]
[346063401,1734685847323,-507.46901568,0.00021917,4]
[346063402,1734685847333,-500.0,0.00021917,4]
[346063403,1734685847342,-500.0,0.00021917,4]
[346063404,1734685847354,-500.0,0.00021917,4]
[346063405,1734685847364,-500.0,0.00021917,4]
[346063406,1734685847375,-500.0,0.00021917,4]
[346063407,1734685847386,-500.0,0.00021917,4]
[346063408,1734685847395,-501.99085163,0.00021917,4]
[346063409,1734685847404,-560.96552667,0.00021917,4]
[346063410,1734685847414,-500.0,0.00021917,4]
[346063411,1734685847423,-500.0,0.00021917,4]
[346063412,1734685847432,-360.49792617,0.00021917,4]
[346063413,1734685847442,-500.0,0.00021917,4]
[346063414,1734685847451,-500.0,0.00021917,4]
[346063415,1734685847465,-500.0,0.00021917,4]
[346063416,1734685847474,-500.0,0.00021917,4]